[Event "Titled Tuesday Blitz October 11 Late 2022"]
[White "Toncheva, Nadya"]
[Black "Bongo Akanga Ndjila, Barthelemy"]
[WhiteFideId "2924056"]
[BlackFideId "10609431"]
[WhiteElo "2101"]
[BlackElo "1768"]
[Result "1/2-1/2"]
[Round "01"]
[TimeControl "180+1"]
[Date "2022.10.12"]
[WhiteClock "0:00:04"]
[BlackClock "0:00:29"]

1. e4 {[%clk 0:03:00]}  c6 {[%clk 0:02:59]} 2. d4 {[%clk 0:02:59]}  d5 {[%clk 0:03:00]} 3. Nc3 {[%clk 0:02:59]}  g6 {[%clk 0:02:58]} 4. Nf3 {[%clk 0:02:57]}  Bg7 {[%clk 0:02:57]} 5. e5 {[%clk 0:02:55]}  f6 {[%clk 0:02:55]} 6. Be3 {[%clk 0:02:51]}  Nh6 {[%clk 0:02:52]} 7. exf6 {[%clk 0:02:44]}  exf6 {[%clk 0:02:51]} 8. Bd3 {[%clk 0:02:41]}  Nf5 {[%clk 0:02:49]} 9. O-O {[%clk 0:02:40]}  Nxe3 {[%clk 0:02:46]} 10. fxe3 {[%clk 0:02:41]}  O-O {[%clk 0:02:46]} 11. e4 {[%clk 0:02:36]}  dxe4 {[%clk 0:02:44]} 12. Nxe4 {[%clk 0:02:37]}  f5 {[%clk 0:02:44]} 13. Nf2 {[%clk 0:02:34]}  Nd7 {[%clk 0:02:39]} 14. Bc4+ {[%clk 0:02:28]}  Kh8 {[%clk 0:02:39]} 15. Qd2 {[%clk 0:02:18]}  Nb6 {[%clk 0:02:36]} 16. Bb3 {[%clk 0:02:18]}  Nd5 {[%clk 0:02:35]} 17. Rae1 {[%clk 0:02:15]}  a5 {[%clk 0:02:31]} 18. c4 {[%clk 0:02:09]}  Nb6 {[%clk 0:02:21]} 19. a3 {[%clk 0:01:52]}  a4 {[%clk 0:02:15]} 20. Ba2 {[%clk 0:01:52]}  Re8 {[%clk 0:02:02]} 21. Rxe8+ {[%clk 0:01:49]}  Qxe8 {[%clk 0:02:01]} 22. Re1 {[%clk 0:01:50]}  Qf7 {[%clk 0:02:00]} 23. Ng5 {[%clk 0:00:58]}  Qf8 {[%clk 0:01:59]} 24. Kh1 {[%clk 0:00:42]}  Bh6 {[%clk 0:01:57]} 25. Nfh3 {[%clk 0:00:42]}  Bd7 {[%clk 0:01:52]} 26. Qc3 {[%clk 0:00:41]}  Re8 {[%clk 0:01:46]} 27. Nf3 {[%clk 0:00:34]}  Bg7 {[%clk 0:01:43]} 28. Nf4 {[%clk 0:00:31]}  c5 {[%clk 0:01:43]} 29. Rxe8 {[%clk 0:00:24]}  Bxe8 {[%clk 0:01:40]} 30. Qd2 {[%clk 0:00:21]}  cxd4 {[%clk 0:01:36]} 31. Ne6 {[%clk 0:00:16]}  Qd6 {[%clk 0:01:28]} 32. Nxg7 {[%clk 0:00:16]}  Kxg7 {[%clk 0:01:28]} 33. Nxd4 {[%clk 0:00:15]}  Qe5 {[%clk 0:01:23]} 34. Nf3 {[%clk 0:00:13]}  Qe4 {[%clk 0:01:17]} 35. c5 {[%clk 0:00:12]}  Nc4 {[%clk 0:01:16]} 36. Qc3+ {[%clk 0:00:10]}  Kh6 {[%clk 0:01:15]} 37. Qxc4 {[%clk 0:00:07]}  Qe3 {[%clk 0:01:03]} 38. Qh4+ {[%clk 0:00:07]}  Kg7 {[%clk 0:01:01]} 39. Qd4+ {[%clk 0:00:08]}  Qxd4 {[%clk 0:00:59]} 40. Nxd4 {[%clk 0:00:09]}  Kf6 {[%clk 0:00:58]} 41. Kg1 {[%clk 0:00:08]}  Ke5 {[%clk 0:00:58]} 42. Nf3+ {[%clk 0:00:07]}  Ke4 {[%clk 0:00:57]} 43. Ng5+ {[%clk 0:00:07]}  Ke3 {[%clk 0:00:57]} 44. Nxh7 {[%clk 0:00:08]}  Kd2 {[%clk 0:00:56]} 45. Nf6 {[%clk 0:00:08]}  Bc6 {[%clk 0:00:54]} 46. Bd5 {[%clk 0:00:08]}  Bxd5 {[%clk 0:00:46]} 47. Nxd5 {[%clk 0:00:09]}  Kc2 {[%clk 0:00:46]} 48. Nb6 {[%clk 0:00:09]}  Kxb2 {[%clk 0:00:44]} 49. Nxa4+ {[%clk 0:00:09]}  Kxa3 {[%clk 0:00:45]} 50. Nb6 {[%clk 0:00:08]}  Kb4 {[%clk 0:00:45]} 51. Nd7 {[%clk 0:00:08]}  Kb5 {[%clk 0:00:44]} 52. Kf2 {[%clk 0:00:09]}  Kc6 {[%clk 0:00:44]} 53. Ne5+ {[%clk 0:00:09]}  Kxc5 {[%clk 0:00:44]} 54. Nxg6 {[%clk 0:00:10]}  b5 {[%clk 0:00:45]} 55. h4 {[%clk 0:00:10]}  Kc4 {[%clk 0:00:46]} 56. h5 {[%clk 0:00:09]}  b4 {[%clk 0:00:47]} 57. h6 {[%clk 0:00:10]}  b3 {[%clk 0:00:47]} 58. h7 {[%clk 0:00:09]}  b2 {[%clk 0:00:48]} 59. h8=Q {[%clk 0:00:09]}  b1=Q {[%clk 0:00:49]} 60. Qc8+ {[%clk 0:00:09]}  Kd5 {[%clk 0:00:49]} 61. Qd7+ {[%clk 0:00:09]}  Kc5 {[%clk 0:00:46]} 62. Qc7+ {[%clk 0:00:09]}  Kd5 {[%clk 0:00:46]} 63. Nf4+ {[%clk 0:00:09]}  Ke4 {[%clk 0:00:45]} 64. Qc4+ {[%clk 0:00:08]}  Ke5 {[%clk 0:00:45]} 65. Nd3+ {[%clk 0:00:08]}  Kf6 {[%clk 0:00:44]} 66. Qd4+ {[%clk 0:00:09]}  Kg5 {[%clk 0:00:43]} 67. Qe3+ {[%clk 0:00:08]}  Kg6 {[%clk 0:00:40]} 68. Ne5+ {[%clk 0:00:07]}  Kf6 {[%clk 0:00:39]} 69. Nd7+ {[%clk 0:00:07]}  Kg6 {[%clk 0:00:37]} 70. Qe6+ {[%clk 0:00:07]}  Kg5 {[%clk 0:00:37]} 71. Qg8+ {[%clk 0:00:07]}  Kf4 {[%clk 0:00:37]} 72. Qg3+ {[%clk 0:00:07]}  Ke4 {[%clk 0:00:36]} 73. Qe3+ {[%clk 0:00:08]}  Kd5 {[%clk 0:00:36]} 74. Nf6+ {[%clk 0:00:07]}  Kd6 {[%clk 0:00:35]} 75. Ne8+ {[%clk 0:00:07]}  Kd7 {[%clk 0:00:35]} 76. Nf6+ {[%clk 0:00:07]}  Kd6 {[%clk 0:00:35]} 77. Qf4+ {[%clk 0:00:07]}  Ke6 {[%clk 0:00:34]} 78. Qd4 {[%clk 0:00:06]}  Qc2+ {[%clk 0:00:32]} 79. Kg1 {[%clk 0:00:05]}  Qc1+ {[%clk 0:00:32]} 80. Kf2 {[%clk 0:00:05]}  Qc2+ {[%clk 0:00:31]} 81. Kf3 {[%clk 0:00:05]}  Qb3+ {[%clk 0:00:30]} 82. Kf2 {[%clk 0:00:04]}  Qc2+ {[%clk 0:00:29]} 1/2-1/2


[Site "https://www.chess.com"]

[Event "Titled Tuesday Blitz October 11 Late 2022"]
[White "Van Foreest, Jorden"]
[Black "Tan, Ralph"]
[WhiteFideId "1039784"]
[BlackFideId "30966590"]
[WhiteElo "2649"]
[BlackElo "2059"]
[Result "1-0"]
[Round "01"]
[TimeControl "180+1"]
[Date "2022.10.11"]
[WhiteClock "0:01:40"]
[BlackClock "0:00:15"]

1. Nf3 {[%clk 0:02:56]}  Nf6 {[%clk 0:02:45]} 2. b3 {[%clk 0:02:55]}  g6 {[%clk 0:02:45]} 3. Bb2 {[%clk 0:02:56]}  d5 {[%clk 0:02:43]} 4. e3 {[%clk 0:02:44]}  Bg7 {[%clk 0:02:43]} 5. c4 {[%clk 0:02:44]}  c6 {[%clk 0:02:42]} 6. Nc3 {[%clk 0:02:44]}  O-O {[%clk 0:02:42]} 7. h3 {[%clk 0:02:45]}  a6 {[%clk 0:02:37]} 8. Be2 {[%clk 0:02:44]}  b5 {[%clk 0:02:37]} 9. O-O {[%clk 0:02:41]}  Nbd7 {[%clk 0:02:33]} 10. d3 {[%clk 0:02:38]}  Bb7 {[%clk 0:02:33]} 11. Rc1 {[%clk 0:02:29]}  Rc8 {[%clk 0:02:25]} 12. Rc2 {[%clk 0:02:25]}  dxc4 {[%clk 0:02:07]} 13. dxc4 {[%clk 0:02:24]}  Nc5 {[%clk 0:01:55]} 14. Qa1 {[%clk 0:02:23]}  b4 {[%clk 0:01:48]} 15. Nb1 {[%clk 0:02:19]}  Nce4 {[%clk 0:01:35]} 16. Rd1 {[%clk 0:02:18]}  Qb6 {[%clk 0:01:25]} 17. Nbd2 {[%clk 0:02:18]}  c5 {[%clk 0:01:24]} 18. Nxe4 {[%clk 0:02:18]}  Bxe4 {[%clk 0:01:25]} 19. Rcd2 {[%clk 0:02:18]}  Rfd8 {[%clk 0:01:20]} 20. Ng5 {[%clk 0:02:06]}  Bb7 {[%clk 0:01:02]} 21. Bf3 {[%clk 0:02:05]}  h6 {[%clk 0:00:37]} 22. Rxd8+ {[%clk 0:01:46]}  Rxd8 {[%clk 0:00:35]} 23. Rxd8+ {[%clk 0:01:46]}  Qxd8 {[%clk 0:00:34]} 24. Nxf7 {[%clk 0:01:47]}  Kxf7 {[%clk 0:00:34]} 25. Bxb7 {[%clk 0:01:48]}  Qd2 {[%clk 0:00:33]} 26. a3 {[%clk 0:01:44]}  a5 {[%clk 0:00:31]} 27. axb4 {[%clk 0:01:44]}  axb4 {[%clk 0:00:30]} 28. e4 {[%clk 0:01:40]}  Nxe4 {[%clk 0:00:19]} 29. Bd5+ {[%clk 0:01:40]}  e6 {[%clk 0:00:17]} 30. Qa7+ {[%clk 0:01:39]}  Ke8 {[%clk 0:00:17]} 31. Qb8+ {[%clk 0:01:39]}  Ke7 {[%clk 0:00:15]} 32. Qc7+ {[%clk 0:01:39]}  Ke8 {[%clk 0:00:15]} 33. Bc6+ {[%clk 0:01:40]} 1-0


[Site "https://www.chess.com"]

[Event "Titled Tuesday Blitz October 11 Late 2022"]
[White "Vujcic, Milena"]
[Black "Vrbljanac, Aleksandar"]
[WhiteFideId "954748"]
[BlackFideId "932817"]
[WhiteElo "1931"]
[BlackElo "2309"]
[Result "0-1"]
[Round "01"]
[TimeControl "180+1"]
[Date "2022.10.12"]
[WhiteClock "0:00:07"]
[BlackClock "0:00:15"]

1. e4 {[%clk 0:02:59]}  e5 {[%clk 0:02:32]} 2. Nf3 {[%clk 0:02:59]}  Nc6 {[%clk 0:02:32]} 3. Bb5 {[%clk 0:02:59]}  a6 {[%clk 0:02:32]} 4. Ba4 {[%clk 0:02:58]}  Nf6 {[%clk 0:02:31]} 5. O-O {[%clk 0:02:58]}  Be7 {[%clk 0:02:31]} 6. d3 {[%clk 0:02:59]}  d6 {[%clk 0:02:31]} 7. h3 {[%clk 0:02:59]}  O-O {[%clk 0:02:28]} 8. c3 {[%clk 0:02:57]}  b5 {[%clk 0:02:23]} 9. Bc2 {[%clk 0:02:56]}  h6 {[%clk 0:02:21]} 10. a4 {[%clk 0:02:56]}  Bb7 {[%clk 0:02:18]} 11. Re1 {[%clk 0:02:55]}  Qd7 {[%clk 0:02:01]} 12. Nbd2 {[%clk 0:02:42]}  b4 {[%clk 0:01:44]} 13. Nf1 {[%clk 0:02:38]}  a5 {[%clk 0:01:41]} 14. Ng3 {[%clk 0:02:35]}  Rfe8 {[%clk 0:01:39]} 15. d4 {[%clk 0:02:32]}  Bf8 {[%clk 0:01:38]} 16. Qd3 {[%clk 0:02:19]}  Ba6 {[%clk 0:01:31]} 17. Qd1 {[%clk 0:02:10]}  Rab8 {[%clk 0:01:24]} 18. Bb3 {[%clk 0:02:03]}  Nd8 {[%clk 0:00:53]} 19. Bd2 {[%clk 0:01:56]}  c5 {[%clk 0:00:52]} 20. dxe5 {[%clk 0:01:44]}  dxe5 {[%clk 0:00:52]} 21. cxb4 {[%clk 0:01:43]}  axb4 {[%clk 0:00:50]} 22. Rc1 {[%clk 0:01:38]}  Rc8 {[%clk 0:00:44]} 23. Bc4 {[%clk 0:01:20]}  Bxc4 {[%clk 0:00:38]} 24. Rxc4 {[%clk 0:01:20]}  Nc6 {[%clk 0:00:34]} 25. Qc1 {[%clk 0:01:08]}  Ra8 {[%clk 0:00:29]} 26. Be3 {[%clk 0:00:57]}  Na5 {[%clk 0:00:27]} 27. Rc2 {[%clk 0:00:41]}  Nb3 {[%clk 0:00:23]} 28. Qb1 {[%clk 0:00:32]}  Qxa4 {[%clk 0:00:20]} 29. Rd1 {[%clk 0:00:13]}  Nd4 {[%clk 0:00:19]} 30. Bxd4 {[%clk 0:00:09]}  cxd4 {[%clk 0:00:18]} 31. Rc7 {[%clk 0:00:08]}  Bd6 {[%clk 0:00:17]} 32. Rb7 {[%clk 0:00:07]}  Qc6 {[%clk 0:00:15]} 0-1


[Site "https://www.chess.com"]

[Event "Titled Tuesday Blitz October 11 Late 2022"]
[White "Wagner, Dennis"]
[Black "Storey, Charles H"]
[WhiteFideId "24650684"]
[BlackFideId "406686"]
[WhiteElo "2470"]
[BlackElo "2252"]
[Result "1-0"]
[Round "01"]
[TimeControl "180+1"]
[Date "2022.10.12"]
[WhiteClock "0:01:03"]
[BlackClock "0:00:12"]

1. e4 {[%clk 0:03:00]}  g6 {[%clk 0:02:58]} 2. d4 {[%clk 0:03:00]}  Bg7 {[%clk 0:02:59]} 3. c4 {[%clk 0:03:01]}  c5 {[%clk 0:02:59]} 4. d5 {[%clk 0:03:01]}  e5 {[%clk 0:03:00]} 5. Nc3 {[%clk 0:03:01]}  d6 {[%clk 0:03:00]} 6. Bd3 {[%clk 0:03:00]}  Nd7 {[%clk 0:03:00]} 7. Nge2 {[%clk 0:03:00]}  Ngf6 {[%clk 0:03:00]} 8. Ng3 {[%clk 0:03:00]}  h5 {[%clk 0:02:59]} 9. h4 {[%clk 0:02:58]}  a6 {[%clk 0:02:54]} 10. a4 {[%clk 0:02:58]}  O-O {[%clk 0:02:53]} 11. Bg5 {[%clk 0:02:58]}  Qa5 {[%clk 0:02:49]} 12. O-O {[%clk 0:02:51]}  Re8 {[%clk 0:02:38]} 13. Bd2 {[%clk 0:02:49]}  Qd8 {[%clk 0:02:37]} 14. f3 {[%clk 0:02:48]}  Nh7 {[%clk 0:02:35]} 15. Be1 {[%clk 0:02:37]}  Bf6 {[%clk 0:02:28]} 16. Nh1 {[%clk 0:02:13]}  Bxh4 {[%clk 0:02:26]} 17. g3 {[%clk 0:02:13]}  Bg5 {[%clk 0:02:23]} 18. Nf2 {[%clk 0:02:14]}  Be3 {[%clk 0:02:20]} 19. Kg2 {[%clk 0:02:14]}  Ndf6 {[%clk 0:02:14]} 20. Rh1 {[%clk 0:02:14]}  Kg7 {[%clk 0:01:56]} 21. Bd2 {[%clk 0:02:14]}  Bxd2 {[%clk 0:01:55]} 22. Qxd2 {[%clk 0:02:15]}  Rh8 {[%clk 0:01:53]} 23. a5 {[%clk 0:02:12]}  Ng8 {[%clk 0:01:43]} 24. Na4 {[%clk 0:02:10]}  Qg5 {[%clk 0:01:31]} 25. Qxg5 {[%clk 0:02:07]}  Nxg5 {[%clk 0:01:30]} 26. Nb6 {[%clk 0:02:08]}  Rb8 {[%clk 0:01:31]} 27. b4 {[%clk 0:02:05]}  cxb4 {[%clk 0:01:27]} 28. Rab1 {[%clk 0:02:04]}  Nf6 {[%clk 0:01:26]} 29. Rxb4 {[%clk 0:02:04]}  Nd7 {[%clk 0:01:23]} 30. Nxd7 {[%clk 0:01:57]}  Bxd7 {[%clk 0:01:22]} 31. Rb6 {[%clk 0:01:58]}  Rhd8 {[%clk 0:01:10]} 32. Rxd6 {[%clk 0:01:57]}  f6 {[%clk 0:00:54]} 33. c5 {[%clk 0:01:53]}  Nf7 {[%clk 0:00:50]} 34. Rb6 {[%clk 0:01:53]}  Rdc8 {[%clk 0:00:50]} 35. Rc1 {[%clk 0:01:50]}  Nd8 {[%clk 0:00:41]} 36. Be2 {[%clk 0:01:36]}  Ra8 {[%clk 0:00:41]} 37. f4 {[%clk 0:01:25]}  Rc7 {[%clk 0:00:37]} 38. fxe5 {[%clk 0:01:24]}  fxe5 {[%clk 0:00:37]} 39. c6 {[%clk 0:01:07]}  bxc6 {[%clk 0:00:35]} 40. d6 {[%clk 0:01:08]}  Rb7 {[%clk 0:00:30]} 41. Nd3 {[%clk 0:01:05]}  Rxb6 {[%clk 0:00:17]} 42. axb6 {[%clk 0:01:06]}  Nb7 {[%clk 0:00:16]} 43. Nxe5 {[%clk 0:01:06]}  Rd8 {[%clk 0:00:17]} 44. Nxd7 {[%clk 0:01:02]}  Rxd7 {[%clk 0:00:17]} 45. e5 {[%clk 0:01:03]}  Nxd6 {[%clk 0:00:11]} 46. exd6 {[%clk 0:01:02]}  Rxd6 {[%clk 0:00:12]} 47. b7 {[%clk 0:01:03]} 1-0


[Site "https://www.chess.com"]

[Event "Titled Tuesday Blitz October 11 Late 2022"]
[White "Yeritsyan, Hayk"]
[Black "Melikyan, Gnel"]
[WhiteFideId "13307320"]
[BlackFideId "54109990"]
[WhiteElo "2342"]
[BlackElo "2138"]
[Result "0-1"]
[Round "01"]
[TimeControl "180+1"]
[Date "2022.10.12"]
[WhiteClock "0:01:20"]
[BlackClock "0:01:30"]

1. d4 {[%clk 0:02:57]}  d6 {[%clk 0:02:58]} 2. Nf3 {[%clk 0:02:57]}  Nf6 {[%clk 0:02:59]} 3. Bf4 {[%clk 0:02:58]}  g6 {[%clk 0:02:59]} 4. h3 {[%clk 0:02:58]}  Bg7 {[%clk 0:02:59]} 5. e3 {[%clk 0:02:59]}  O-O {[%clk 0:03:00]} 6. Be2 {[%clk 0:02:59]}  Nc6 {[%clk 0:03:00]} 7. c3 {[%clk 0:02:59]}  e5 {[%clk 0:03:01]} 8. Bh2 {[%clk 0:02:59]}  Qe7 {[%clk 0:02:59]} 9. O-O {[%clk 0:02:57]}  Ne4 {[%clk 0:02:58]} 10. Nbd2 {[%clk 0:02:56]}  Nxd2 {[%clk 0:02:58]} 11. Nxd2 {[%clk 0:02:57]}  f5 {[%clk 0:02:57]} 12. Bf3 {[%clk 0:02:57]}  e4 {[%clk 0:02:57]} 13. Be2 {[%clk 0:02:58]}  g5 {[%clk 0:02:57]} 14. Qc2 {[%clk 0:02:58]}  Nd8 {[%clk 0:02:51]} 15. c4 {[%clk 0:02:55]}  c6 {[%clk 0:02:52]} 16. Rfe1 {[%clk 0:02:54]}  d5 {[%clk 0:02:49]} 17. cxd5 {[%clk 0:02:55]}  cxd5 {[%clk 0:02:49]} 18. Rac1 {[%clk 0:02:55]}  f4 {[%clk 0:02:47]} 19. Qc5 {[%clk 0:02:49]}  Qf7 {[%clk 0:02:43]} 20. Qc7 {[%clk 0:02:44]}  Bd7 {[%clk 0:02:40]} 21. Bg4 {[%clk 0:02:38]}  fxe3 {[%clk 0:02:33]} 22. fxe3 {[%clk 0:02:26]}  Qf2+ {[%clk 0:02:32]} 23. Kh1 {[%clk 0:02:27]}  Bxg4 {[%clk 0:02:33]} 24. Nxe4 {[%clk 0:02:15]}  dxe4 {[%clk 0:02:26]} 25. hxg4 {[%clk 0:02:15]}  Nf7 {[%clk 0:02:19]} 26. Qxb7 {[%clk 0:02:13]}  Nh6 {[%clk 0:02:03]} 27. Qxe4 {[%clk 0:02:05]}  Rae8 {[%clk 0:02:01]} 28. Qd5+ {[%clk 0:02:05]}  Kh8 {[%clk 0:02:02]} 29. Qxg5 {[%clk 0:02:05]}  Qxb2 {[%clk 0:01:49]} 30. Rc7 {[%clk 0:02:02]}  Rf7 {[%clk 0:01:46]} 31. Rc6 {[%clk 0:01:33]}  Qf2 {[%clk 0:01:40]} 32. Rec1 {[%clk 0:01:28]}  Qxe3 {[%clk 0:01:30]} 33. Qxe3 {[%clk 0:01:24]}  Rxe3 {[%clk 0:01:31]} 34. Bf4 {[%clk 0:01:24]}  Rxf4 {[%clk 0:01:29]} 35. Rc8+ {[%clk 0:01:22]}  Rf8 {[%clk 0:01:29]} 36. Rxf8+ {[%clk 0:01:21]}  Bxf8 {[%clk 0:01:30]} 37. Rc7 {[%clk 0:01:21]}  Re1+ {[%clk 0:01:29]} 38. Kh2 {[%clk 0:01:20]}  Bd6+ {[%clk 0:01:30]} 39. Kh3 {[%clk 0:01:20]}  Rh1# {[%clk 0:01:30]} 0-1


[Site "https://www.chess.com"]

[Event "Titled Tuesday Blitz October 11 Late 2022"]
[White "Yurovskykh, Oleksandr"]
[Black "Tarnowska, Aleksandra"]
[WhiteFideId "14134020"]
[BlackFideId "1180967"]
[WhiteElo "2303"]
[BlackElo "1776"]
[Result "1-0"]
[Round "01"]
[TimeControl "180+1"]
[Date "2022.10.12"]
[WhiteClock "0:01:36"]
[BlackClock "0:01:06"]

1. d4 {[%clk 0:02:51]}  d5 {[%clk 0:02:51]} 2. Bf4 {[%clk 0:02:47]}  e6 {[%clk 0:02:49]} 3. e3 {[%clk 0:02:46]}  Nf6 {[%clk 0:02:50]} 4. Nd2 {[%clk 0:02:45]}  Nbd7 {[%clk 0:02:45]} 5. Bd3 {[%clk 0:02:44]}  c5 {[%clk 0:02:42]} 6. c3 {[%clk 0:02:43]}  Be7 {[%clk 0:02:29]} 7. Ngf3 {[%clk 0:02:43]}  O-O {[%clk 0:02:27]} 8. O-O {[%clk 0:02:43]}  b6 {[%clk 0:02:23]} 9. Qe2 {[%clk 0:02:40]}  Bb7 {[%clk 0:02:19]} 10. Ne5 {[%clk 0:02:39]}  Rc8 {[%clk 0:02:18]} 11. Rad1 {[%clk 0:02:38]}  Re8 {[%clk 0:02:17]} 12. Rfe1 {[%clk 0:02:37]}  Nf8 {[%clk 0:02:13]} 13. Bg3 {[%clk 0:02:34]}  Ng6 {[%clk 0:02:10]} 14. Nxg6 {[%clk 0:02:33]}  hxg6 {[%clk 0:02:11]} 15. Bh4 {[%clk 0:02:26]}  c4 {[%clk 0:02:04]} 16. Bc2 {[%clk 0:02:26]}  b5 {[%clk 0:02:01]} 17. a3 {[%clk 0:02:08]}  a5 {[%clk 0:02:00]} 18. e4 {[%clk 0:02:07]}  Nxe4 {[%clk 0:01:52]} 19. Bxe7 {[%clk 0:02:05]}  Qxe7 {[%clk 0:01:52]} 20. Nxe4 {[%clk 0:02:06]}  dxe4 {[%clk 0:01:52]} 21. Bxe4 {[%clk 0:02:06]}  Bxe4 {[%clk 0:01:51]} 22. Qxe4 {[%clk 0:02:07]}  Qd7 {[%clk 0:01:37]} 23. g3 {[%clk 0:01:58]}  Rb8 {[%clk 0:01:35]} 24. Qe5 {[%clk 0:01:54]}  Red8 {[%clk 0:01:16]} 25. Rd2 {[%clk 0:01:45]}  Qc6 {[%clk 0:01:06]} 26. Rde2 {[%clk 0:01:37]}  Rd5 {[%clk 0:01:06]} 27. Qxb8+ {[%clk 0:01:36]} 1-0


[Site "https://www.chess.com"]

[Event "Titled Tuesday Blitz October 11 Late 2022"]
[White "Zhigalko, Sergei"]
[Black "Pesotskiy, Mikhail"]
[WhiteFideId "13502956"]
[BlackFideId "34164453"]
[WhiteElo "2867"]
[BlackElo "2467"]
[Result "1-0"]
[Round "01"]
[TimeControl "180+1"]
[Date "2022.10.12"]
[WhiteClock "0:02:23"]
[BlackClock "0:00:45"]

1. e4 {[%clk 0:03:00]}  e6 {[%clk 0:02:59]} 2. d4 {[%clk 0:03:00]}  d5 {[%clk 0:03:00]} 3. e5 {[%clk 0:03:00]}  c5 {[%clk 0:03:00]} 4. c3 {[%clk 0:03:01]}  Qa5 {[%clk 0:03:01]} 5. Nf3 {[%clk 0:02:59]}  cxd4 {[%clk 0:03:01]} 6. Qxd4 {[%clk 0:03:00]}  Nc6 {[%clk 0:03:01]} 7. Qf4 {[%clk 0:03:00]}  Nge7 {[%clk 0:03:01]} 8. Bd3 {[%clk 0:03:00]}  Ng6 {[%clk 0:03:02]} 9. Qg3 {[%clk 0:03:00]}  Qc7 {[%clk 0:03:00]} 10. Bxg6 {[%clk 0:02:52]}  hxg6 {[%clk 0:02:57]} 11. O-O {[%clk 0:02:52]}  Bd7 {[%clk 0:02:56]} 12. Bg5 {[%clk 0:02:52]}  Be7 {[%clk 0:02:47]} 13. Bxe7 {[%clk 0:02:52]}  Nxe7 {[%clk 0:02:48]} 14. Nbd2 {[%clk 0:02:52]}  f6 {[%clk 0:02:26]} 15. exf6 {[%clk 0:02:40]}  Qxg3 {[%clk 0:02:25]} 16. f7+ {[%clk 0:02:40]}  Kxf7 {[%clk 0:02:22]} 17. fxg3 {[%clk 0:02:32]}  Ke8 {[%clk 0:02:15]} 18. Ne5 {[%clk 0:02:30]}  Rh5 {[%clk 0:02:06]} 19. Rae1 {[%clk 0:02:29]}  Rf5 {[%clk 0:01:52]} 20. g4 {[%clk 0:02:25]}  Rxf1+ {[%clk 0:01:50]} 21. Rxf1 {[%clk 0:02:26]}  Nc6 {[%clk 0:00:45]} 22. Nxg6 {[%clk 0:02:23]} 1-0


[Site "https://www.chess.com"]

[Event "Titled Tuesday Blitz October 11 Late 2022"]
[White "Zochowski, Kacper"]
[Black "Dubov, Daniil"]
[WhiteFideId "1125494"]
[BlackFideId "24126055"]
[WhiteElo "2292"]
[BlackElo "2791"]
[Result "0-1"]
[Round "01"]
[TimeControl "180+1"]
[Date "2022.10.11"]
[WhiteClock "0:00:09"]
[BlackClock "0:01:20"]

1. Nf3 {[%clk 0:02:57]}  d5 {[%clk 0:02:59]} 2. c4 {[%clk 0:02:57]}  d4 {[%clk 0:02:59]} 3. e3 {[%clk 0:02:56]}  Nc6 {[%clk 0:02:59]} 4. exd4 {[%clk 0:02:56]}  Nxd4 {[%clk 0:03:00]} 5. Nxd4 {[%clk 0:02:57]}  Qxd4 {[%clk 0:03:00]} 6. Nc3 {[%clk 0:02:58]}  Nf6 {[%clk 0:02:59]} 7. Be2 {[%clk 0:02:25]}  g6 {[%clk 0:02:56]} 8. d3 {[%clk 0:02:25]}  Bg7 {[%clk 0:02:54]} 9. Be3 {[%clk 0:02:25]}  Qd8 {[%clk 0:02:51]} 10. d4 {[%clk 0:02:24]}  O-O {[%clk 0:02:51]} 11. O-O {[%clk 0:02:24]}  c6 {[%clk 0:02:49]} 12. Qd2 {[%clk 0:02:23]}  Re8 {[%clk 0:02:49]} 13. Rac1 {[%clk 0:02:20]}  Bf5 {[%clk 0:02:48]} 14. Rfd1 {[%clk 0:02:20]}  Ne4 {[%clk 0:02:44]} 15. Nxe4 {[%clk 0:02:20]}  Bxe4 {[%clk 0:02:45]} 16. Bd3 {[%clk 0:02:16]}  Bxd3 {[%clk 0:02:45]} 17. Qxd3 {[%clk 0:02:16]}  Qa5 {[%clk 0:02:42]} 18. a3 {[%clk 0:01:49]}  Rad8 {[%clk 0:02:40]} 19. b4 {[%clk 0:01:45]}  Qa4 {[%clk 0:02:39]} 20. d5 {[%clk 0:01:08]}  cxd5 {[%clk 0:02:29]} 21. cxd5 {[%clk 0:01:08]}  Rd7 {[%clk 0:02:26]} 22. Rc5 {[%clk 0:00:47]}  b6 {[%clk 0:02:23]} 23. Qc2 {[%clk 0:00:41]}  Qxa3 {[%clk 0:02:19]} 24. Rc8 {[%clk 0:00:40]}  Rdd8 {[%clk 0:02:19]} 25. Rxd8 {[%clk 0:00:40]}  Rxd8 {[%clk 0:02:20]} 26. Qc4 {[%clk 0:00:32]}  Qa4 {[%clk 0:02:13]} 27. Rd3 {[%clk 0:00:20]}  a5 {[%clk 0:01:58]} 28. h3 {[%clk 0:00:17]}  Qxb4 {[%clk 0:01:57]} 29. Qc7 {[%clk 0:00:13]}  Ra8 {[%clk 0:01:33]} 30. Qxb6 {[%clk 0:00:10]}  Qxb6 {[%clk 0:01:33]} 31. Bxb6 {[%clk 0:00:11]}  a4 {[%clk 0:01:33]} 32. Bc5 {[%clk 0:00:11]}  Bb2 {[%clk 0:01:31]} 33. Ba3 {[%clk 0:00:04]}  Bxa3 {[%clk 0:01:31]} 34. Rxa3 {[%clk 0:00:05]}  Kf8 {[%clk 0:01:31]} 35. Kf1 {[%clk 0:00:05]}  Ke8 {[%clk 0:01:32]} 36. Ke2 {[%clk 0:00:06]}  Kd7 {[%clk 0:01:32]} 37. Kd3 {[%clk 0:00:07]}  Kd6 {[%clk 0:01:33]} 38. Kc4 {[%clk 0:00:07]}  Ra5 {[%clk 0:01:31]} 39. f4 {[%clk 0:00:05]}  h5 {[%clk 0:01:28]} 40. g3 {[%clk 0:00:05]}  Rc5+ {[%clk 0:01:23]} 41. Kb4 {[%clk 0:00:05]}  Rxd5 {[%clk 0:01:23]} 42. Kxa4 {[%clk 0:00:06]}  h4 {[%clk 0:01:24]} 43. gxh4 {[%clk 0:00:06]}  Rd4+ {[%clk 0:01:24]} 44. Kb5 {[%clk 0:00:06]}  Rxf4 {[%clk 0:01:25]} 45. h5 {[%clk 0:00:06]}  Rf5+ {[%clk 0:01:24]} 46. Kc4 {[%clk 0:00:06]}  Rxh5 {[%clk 0:01:25]} 47. Re3 {[%clk 0:00:06]}  e5 {[%clk 0:01:25]} 48. Kd3 {[%clk 0:00:06]}  Kd5 {[%clk 0:01:25]} 49. Rg3 {[%clk 0:00:05]}  Rh4 {[%clk 0:01:21]} 50. Ke2 {[%clk 0:00:06]}  Ra4 {[%clk 0:01:21]} 51. Rb3 {[%clk 0:00:07]}  f5 {[%clk 0:01:20]} 52. Kf3 {[%clk 0:00:07]}  Kd4 {[%clk 0:01:18]} 53. Rb8 {[%clk 0:00:06]}  Ra3+ {[%clk 0:01:18]} 54. Kg2 {[%clk 0:00:07]}  e4 {[%clk 0:01:19]} 55. Rg8 {[%clk 0:00:06]}  f4 {[%clk 0:01:18]} 56. Rxg6 {[%clk 0:00:07]}  Ra2+ {[%clk 0:01:19]} 57. Kg1 {[%clk 0:00:07]}  f3 {[%clk 0:01:19]} 58. h4 {[%clk 0:00:05]}  Ke3 {[%clk 0:01:17]} 59. Rf6 {[%clk 0:00:04]}  Ra1+ {[%clk 0:01:16]} 60. Kh2 {[%clk 0:00:05]}  f2 {[%clk 0:01:17]} 61. Kg2 {[%clk 0:00:05]}  Rg1+ {[%clk 0:01:17]} 62. Kh2 {[%clk 0:00:06]}  f1=Q {[%clk 0:01:18]} 63. Rxf1 {[%clk 0:00:07]}  Rxf1 {[%clk 0:01:18]} 64. h5 {[%clk 0:00:08]}  Rf5 {[%clk 0:01:18]} 65. h6 {[%clk 0:00:09]}  Rh5+ {[%clk 0:01:19]} 66. Kg3 {[%clk 0:00:09]}  Rxh6 {[%clk 0:01:20]} 0-1


[Site "https://www.chess.com"]